bitfinex/quotes_BTCUSD_20241226
["timestamp","ask_amount","ask_price","bid_price","bid_amount"]
[1735201263009,0.43364663,96445.0,96444.0,0.35608568]
[1735201263189,0.43364663,96445.0,96444.0,0.35617148]
[1735201263868,0.43464663,96445.0,96444.0,0.35617148]
[1735201264257,0.43264663,96445.0,96444.0,0.35617148]
[1735201264680,0.54164663,96445.0,96444.0,0.35717148]
[1735201264889,0.53264663,96445.0,96444.0,0.35617148]
[1735201265109,0.54164663,96445.0,96444.0,0.35717148]
[1735201265318,0.54164663,96445.0,96444.0,0.22907148]
[1735201265514,0.53164663,96445.0,96444.0,0.16962488]
[1735201265714,0.54064663,96445.0,96444.0,0.17062488]
[1735201265965,0.44464663,96445.0,96444.0,0.17062488]
[1735201266167,0.43564663,96445.0,96444.0,0.16962488]
[1735201266349,0.53164663,96445.0,96444.0,0.16962488]
[1735201266554,0.43164663,96445.0,96444.0,0.16962488]
[1735201266750,0.43564663,96445.0,96444.0,0.16962488]
[1735201266972,0.13704663,96445.0,96444.0,0.16962488]
[1735201267207,0.004,96445.0,96444.0,0.16962488]
[1735201267404,0.11698632,96445.0,96444.0,0.18758737]
[1735201267565,0.11698632,96445.0,96444.0,0.17062488]
[1735201267774,0.10798632,96445.0,96444.0,0.16962488]
[1735201268087,0.34128237,96445.0,96444.0,0.17062488]
[1735201268307,0.33998632,96445.0,96444.0,0.16962488]
[1735201268517,0.3690333,96445.0,96444.0,0.16962488]
[1735201268707,0.3780333,96445.0,96444.0,0.09862487]
[1735201268876,0.3600333,96445.0,96444.0,0.09762487]
[1735201269072,0.3690333,96445.0,96444.0,0.09862487]
[1735201269398,0.3730333,96445.0,96444.0,0.09862487]
[1735201269893,0.3690333,96445.0,96444.0,0.09862487]
[1735201270144,0.3730333,96445.0,96444.0,0.09862487]
[1735201270627,0.3600333,96445.0,96444.0,0.09762487]
[1735201270872,0.59360572,96445.0,96444.0,0.09862487]
[1735201271122,0.59760572,96445.0,96444.0,0.09762487]
[1735201271351,0.60660572,96445.0,96444.0,0.09862487]
[1735201271585,0.58860572,96445.0,96444.0,0.09762487]
[1735201271808,0.46160572,96445.0,96444.0,0.09762487]
[1735201272022,0.1460333,96445.0,96444.0,0.09862487]
[1735201272301,0.20398632,96445.0,96444.0,0.09762487]
[1735201272524,0.20798632,96445.0,96444.0,0.09762487]
[1735201273215,0.3388021,96445.0,96444.0,0.09762487]
[1735201273471,0.3718738,96445.0,96444.0,0.09762487]
[1735201273713,0.3808738,96445.0,96444.0,0.02662486]
[1735201273955,0.5668124,96445.0,96444.0,0.02562486]
[1735201274424,0.5758124,96445.0,96444.0,0.02662486]
[1735201274660,0.6628124,96445.0,96444.0,0.02562486]
[1735201274911,0.6718124,96445.0,96444.0,0.02662486]
[1735201275165,0.6718124,96445.0,96444.0,0.02562486]
[1735201275436,0.6718124,96445.0,96444.0,0.02662486]
[1735201275656,0.580984,96445.0,96444.0,0.02662486]
[1735201275867,0.50122962,96445.0,96444.0,0.02662486]
[1735201276076,0.50522962,96445.0,96444.0,0.02662486]
[1735201276495,0.50122962,96445.0,96444.0,0.02662486]
[1735201276720,0.50522962,96445.0,96444.0,0.02662486]
[1735201277168,0.48722962,96445.0,96444.0,0.00902947]
[1735201277401,0.48722962,96445.0,96444.0,0.01002947]
[1735201277402,0.49622962,96445.0,96444.0,0.01002947]
[1735201277616,0.49622962,96445.0,96444.0,0.00702947]
[1735201277822,0.49222962,96445.0,96444.0,0.00702947]
[1735201278042,0.50122962,96445.0,96444.0,0.00802947]
[1735201278745,0.1,96431.0,96393.0,0.03732368]
[1735201279013,0.10398632,96422.0,96394.0,0.165985]
[1735201279247,0.03036825,96421.0,96400.0,0.165974]
[1735201279489,0.10398632,96420.0,96400.0,0.165974]
[1735201279738,0.00129649,96419.0,96400.0,0.165974]
[1735201279973,0.08987416,96411.0,96400.0,0.165974]
[1735201280218,0.10398632,96410.0,96400.0,0.165974]
[1735201280428,0.09003014,96411.0,96405.0,0.165965]
[1735201280847,0.09003014,96411.0,96405.0,0.331931]
[1735201281273,0.00015598,96411.0,96405.0,0.331931]
[1735201281485,0.00115598,96411.0,96405.0,0.331931]
[1735201282145,0.00215598,96411.0,96405.0,0.331931]
[1735201282441,0.00015598,96411.0,96406.0,0.23538632]
[1735201282652,0.00015598,96411.0,96407.0,0.331926]
[1735201283064,0.00115598,96411.0,96407.0,0.331926]
[1735201283265,0.08987416,96418.0,96408.0,0.10398632]
[1735201283469,0.08987416,96418.0,96417.0,0.165945]
[1735201283683,0.08987416,96437.0,96414.0,0.165949]
[1735201283892,0.08987416,96437.0,96436.0,0.165913]
[1735201284312,0.08987416,96437.0,96433.0,0.165916]
[1735201284520,0.08987416,96437.0,96407.0,0.001]
[1735201284734,0.08987416,96437.0,96433.0,0.165917]
[1735201284999,0.13610742,96439.0,96433.0,0.331834]
[1735201285208,0.004,96437.0,96433.0,0.33235243]
[1735201285415,0.001,96437.0,96433.0,0.33235243]
[1735201285844,0.13481124,96435.0,96433.0,0.33235243]
[1735201286699,0.13481124,96436.0,96433.0,0.33235243]
[1735201287555,0.13481124,96436.0,96435.0,0.165914]
[1735201287556,0.11407224,96436.0,96435.0,0.165914]
[1735201287970,0.003,96437.0,96435.0,0.165914]
[1735201288180,0.17974832,96441.0,96435.0,0.165914]
[1735201288181,0.17974832,96441.0,96438.0,0.165909]
[1735201288413,0.05486755,96441.0,96440.0,0.265906]
[1735201288634,0.0482,96504.0,96464.0,0.165864]
[1735201288867,0.0482,96504.0,96464.0,0.2090372]
[1735201289300,0.30332529,96483.0,96473.0,0.165849]
[1735201290167,0.00032802,96474.0,96473.0,0.165849]
[1735201290388,0.00032802,96474.0,96473.0,0.166849]
[1735201291026,0.44323685,96503.0,96473.0,0.166849]
[1735201291027,0.44323685,96503.0,96483.0,0.0798]
[1735201291263,0.44323685,96503.0,96502.0,0.165799]
[1735201291264,0.0001563,96503.0,96502.0,0.165799]
[1735201291711,0.0001563,96503.0,96499.0,0.165803]
[1735201291712,0.10414262,96503.0,96499.0,0.165803]
[1735201291713,0.1,96502.0,96491.0,0.165817]
[1735201291956,0.1,96502.0,96460.0,0.20729629]
[1735201291957,0.1,96495.0,96483.0,0.165831]
[1735201292212,0.10528182,96494.0,96483.0,0.165831]
[1735201292447,0.0001563,96503.0,96451.0,0.0798]
[1735201292448,0.0011563,96503.0,96502.0,0.165799]
[1735201294372,0.0001563,96503.0,96502.0,0.165799]
[1735201295380,0.0001563,96503.0,96502.0,0.26978532]
[1735201295381,3e-07,96503.0,96502.0,0.26978532]
[1735201295611,0.1,96566.0,96541.0,0.165732]
[1735201295842,0.0482,96576.0,96541.0,0.165732]
[1735201295843,0.1,96573.0,96541.0,0.165732]
[1735201296083,0.00129445,96572.0,96541.0,0.165732]
[1735201296329,0.0003277,96542.0,96541.0,0.26971832]
[1735201296839,0.0003277,96542.0,96541.0,0.166732]
[1735201297357,0.0003277,96542.0,96541.0,0.165732]
[1735201297841,0.10531402,96542.0,96541.0,0.001]
[1735201298862,0.10660881,96542.0,96541.0,0.001]
[1735201299095,0.10660881,96542.0,96523.0,0.165763]
[1735201299096,0.1,96540.0,96523.0,0.165763]
[1735201299340,0.1,96537.0,96523.0,0.165763]
[1735201299580,0.1,96528.0,96515.0,0.165775]
[1735201299816,0.10528135,96527.0,96515.0,0.165775]
[1735201300293,0.10528135,96527.0,96503.0,0.165797]
[1735201300294,0.1,96524.0,96503.0,0.165797]
[1735201300530,0.0813,96521.0,96509.0,0.165786]
[1735201300768,0.10528144,96520.0,96509.0,0.165786]
[1735201301704,0.1,96519.0,96509.0,0.165786]
[1735201301971,0.10528147,96518.0,96509.0,0.165786]
[1735201302677,0.0482,96517.0,96509.0,0.165786]
[1735201302927,0.10398632,96516.0,96509.0,0.165786]
[1735201303407,0.10398632,96516.0,96510.0,0.165785]
[1735201303650,0.09963598,96533.0,96521.0,0.165765]
[1735201303897,0.09898632,96532.0,96520.0,0.18616157]
[1735201304135,0.09898632,96532.0,96529.0,0.165752]
[1735201304624,0.09963598,96549.0,96529.0,0.0331505]
[1735201304865,0.0829,96552.0,96541.0,0.165732]
[1735201304866,0.09963598,96546.0,96541.0,0.165732]
[1735201305102,0.10431402,96542.0,96541.0,0.165732]
[1735201305344,0.0003277,96542.0,96541.0,0.165732]
[1735201306551,0.0023277,96542.0,96541.0,0.165732]
[1735201307073,0.0043277,96542.0,96541.0,0.165732]
[1735201307334,0.10531402,96542.0,96541.0,0.165732]
[1735201307555,0.10531402,96542.0,96530.0,0.16575]
[1735201307556,0.20695,96542.0,96530.0,0.16575]
[1735201307818,0.20695,96542.0,96505.0,0.1]
[1735201307819,0.09963598,96540.0,96537.0,0.165739]
[1735201308058,0.10398632,96539.0,96537.0,0.165739]
[1735201308302,0.10528117,96539.0,96533.0,0.165746]
[1735201308991,0.11779897,96539.0,96533.0,0.165746]
[1735201309241,0.10528117,96539.0,96533.0,0.165746]
[1735201309498,0.09963598,96536.0,96526.0,0.165758]
[1735201309742,0.10528124,96535.0,96526.0,0.165758]
[1735201310003,0.10398632,96535.0,96527.0,0.331512]
[1735201310260,0.17743598,96540.0,96500.0,0.1]
[1735201310261,0.09963598,96525.0,96517.0,0.165773]
[1735201310508,0.2036223,96524.0,96517.0,0.165773]
[1735201311245,0.09963598,96520.0,96507.0,0.165791]
[1735201311505,0.10528146,96519.0,96507.0,0.165791]
[1735201311746,0.09963598,96514.0,96502.0,0.165797]
[1735201312008,0.20491753,96513.0,96508.0,0.165789]
[1735201312253,0.20491753,96513.0,96502.0,0.165797]
[1735201312493,0.09963598,96512.0,96502.0,0.165797]
[1735201312730,0.10528156,96511.0,96502.0,0.165797]
[1735201313740,0.10528156,96511.0,96508.0,0.165787]
[1735201314538,0.10628156,96511.0,96504.0,0.165794]
[1735201314811,0.10528156,96511.0,96504.0,0.165794]
[1735201315034,0.20591754,96511.0,96504.0,0.165794]
[1735201316694,0.20491754,96511.0,96504.0,0.165794]
[1735201317117,0.20591754,96511.0,96504.0,0.165794]
[1735201317526,0.20691754,96511.0,96504.0,0.165794]
[1735201317735,0.20691754,96511.0,96504.0,0.33159]
[1735201319282,0.20691754,96511.0,96504.0,0.165794]
[1735201319897,0.09963598,96509.0,96500.0,0.165802]
[1735201320125,0.10728156,96511.0,96485.0,0.1659843]
[1735201320126,0.10528161,96508.0,96506.0,0.165791]
[1735201320299,0.002,96511.0,96504.0,0.165794]
[1735201320476,0.002,96511.0,96507.0,0.165789]
[1735201320894,0.09963598,96530.0,96491.0,0.15036402]
[1735201321127,0.09963598,96530.0,96528.0,0.165753]
[1735201321128,0.10528131,96529.0,96528.0,0.165753]
[1735201321304,0.10398632,96529.0,96528.0,0.165753]
[1735201321503,0.09963598,96526.0,96500.0,0.001]
[1735201321699,0.0831,96533.0,96500.0,0.001]
[1735201321700,0.09963598,96520.0,96515.0,0.165776]
[1735201321918,0.10398632,96519.0,96515.0,0.165776]
[1735201322119,0.10398632,96519.0,96515.0,0.331553]
[1735201322545,0.10398632,96519.0,96515.0,0.165776]
[1735201322778,0.10398632,96519.0,96515.0,0.331552]
[1735201323385,0.10498632,96519.0,96515.0,0.331552]
[1735201323832,0.03036447,96518.0,96515.0,0.16552333]
[1735201324017,0.1330557,96517.0,96515.0,0.16552333]
[1735201324218,0.02906938,96516.0,96515.0,0.16652333]
[1735201324381,0.1330557,96516.0,96515.0,0.16652333]
[1735201324584,0.1330557,96516.0,96515.0,0.16952333]
[1735201324788,0.1330557,96516.0,96515.0,0.16652333]
[1735201325164,0.1330557,96516.0,96515.0,0.16852333]
[1735201325365,0.1330557,96516.0,96515.0,0.16652333]
[1735201325601,0.1330557,96516.0,96515.0,0.16552333]
[1735201325797,0.1330557,96516.0,96515.0,0.16652333]
[1735201326398,0.1330557,96516.0,96515.0,0.16552333]
[1735201326601,0.1330557,96516.0,96515.0,0.16652333]
[1735201326804,0.1330557,96516.0,96515.0,0.16952333]
[1735201327011,0.10398632,96516.0,96515.0,0.16652333]
[1735201327232,0.10398632,96516.0,96515.0,0.16552333]
[1735201327467,0.10398632,96516.0,96515.0,0.16652333]
[1735201327862,0.001,96516.0,96515.0,0.001]
[1735201328320,0.0001716,96545.0,96535.0,0.165742]
[1735201328487,0.00032767,96536.0,96535.0,0.165742]
[1735201328907,6.7e-07,96536.0,96535.0,0.51972832]
[1735201329053,6.7e-07,96536.0,96535.0,0.52009234]
[1735201329259,6.7e-07,96536.0,96535.0,0.495742]
[1735201329576,6.7e-07,96536.0,96535.0,0.57953425]
[1735201329987,6.7e-07,96536.0,96535.0,0.58053425]
[1735201330410,6.7e-07,96536.0,96535.0,0.57953425]
[1735201330623,0.00100067,96536.0,96535.0,0.166742]
[1735201330825,0.00200067,96536.0,96535.0,0.169742]
[1735201331355,0.00200067,96536.0,96535.0,0.166742]
[1735201331557,0.00100067,96536.0,96535.0,0.166742]
[1735201331755,6.7e-07,96536.0,96535.0,0.167742]
[1735201332017,6.7e-07,96536.0,96535.0,0.170742]
[1735201332224,0.10398699,96536.0,96535.0,0.170742]
[1735201332409,0.20362297,96536.0,96535.0,0.005]
[1735201332597,0.20362297,96536.0,96535.0,0.002]
[1735201332802,0.20362297,96536.0,96535.0,0.003]
[1735201333186,0.2326714,96536.0,96535.0,0.001]
[1735201333397,0.09963598,96523.0,96517.0,0.165773]
[1735201333615,0.09963598,96521.0,96517.0,0.165773]
[1735201333834,0.10528142,96520.0,96517.0,0.165773]
[1735201334265,0.02904858,96519.0,96517.0,0.165773]
[1735201334524,0.09963598,96512.0,96507.0,0.1658757]
[1735201334772,0.10528154,96511.0,96507.0,0.1658757]
[1735201335057,0.09963598,96510.0,96507.0,0.1658757]
[1735201335306,0.10528156,96509.0,96507.0,0.1658757]
[1735201335537,0.02904829,96508.0,96507.0,0.1658757]
[1735201335787,0.13303461,96508.0,96507.0,0.1658757]
[1735201336022,0.10398632,96508.0,96507.0,0.1658757]
[1735201336512,0.0462,96516.0,96515.0,0.165777]
[1735201336755,0.15018632,96516.0,96515.0,0.165777]
[1735201336994,0.09963598,96508.0,96507.0,0.0020857]
[1735201337234,0.23266666,96508.0,96507.0,0.1658767]
[1735201337429,0.23266666,96508.0,96507.0,0.1678767]
[1735201337627,0.23266666,96508.0,96507.0,0.1668767]
[1735201338502,0.23266666,96508.0,96507.0,0.1658767]
[1735201338712,0.23266666,96508.0,96507.0,0.1668767]
[1735201338924,0.23266666,96508.0,96507.0,0.0010857]
[1735201340887,0.23324766,96508.0,96507.0,0.0010857]
[1735201341964,0.23324766,96508.0,96507.0,8.57e-05]
[1735201342205,0.23324766,96508.0,96507.0,0.0010857]
[1735201342626,0.32323407,96508.0,96507.0,0.0010857]
[1735201342812,0.32323407,96508.0,96507.0,8.57e-05]
[1735201343028,0.32323407,96508.0,96507.0,0.0010857]
[1735201343495,0.23266666,96508.0,96507.0,8.57e-05]
[1735201343703,0.09963598,96486.0,96442.0,0.00036402]
[1735201343932,0.09963598,96476.0,96443.0,0.02026395]
[1735201344152,0.09963598,96474.0,96454.0,0.165881]
[1735201344362,0.2339625,96474.0,96454.0,0.165881]
[1735201344599,0.23266666,96474.0,96446.0,0.165895]
[1735201344853,0.09963598,96458.0,96427.0,0.1]
[1735201345073,0.10398632,96473.0,96440.0,0.18616157]
[1735201345297,0.10398632,96473.0,96472.0,0.165851]
[1735201345502,0.13301877,96473.0,96472.0,0.165851]
[1735201345711,0.10398632,96473.0,96472.0,0.165851]
[1735201346357,0.10498632,96473.0,96472.0,0.165851]
[1735201346567,0.10398632,96473.0,96472.0,0.165851]
[1735201346776,0.10498632,96473.0,96472.0,0.16636943]
[1735201347200,0.2046223,96473.0,96472.0,0.00051843]
[1735201347346,0.2056223,96473.0,96472.0,0.00051843]
[1735201348368,0.2056223,96473.0,96472.0,0.00060403]
[1735201348595,0.33855194,96473.0,96472.0,0.00060403]
[1735201349054,0.33955194,96473.0,96472.0,0.00060403]
[1735201349395,0.33855194,96473.0,96472.0,0.00060403]
[1735201349805,0.2046223,96473.0,96472.0,0.00060403]
[1735201351053,0.2944995,96473.0,96472.0,0.00060403]
[1735201351899,0.2934995,96473.0,96472.0,0.00060403]
[1735201352100,0.2036223,96473.0,96472.0,0.00060403]
[1735201352328,0.2046223,96473.0,96472.0,0.00060403]
[1735201352928,0.2056223,96473.0,96472.0,0.00060403]
[1735201353580,0.2046223,96473.0,96472.0,0.00060403]
[1735201353736,0.2036223,96473.0,96472.0,0.00060403]
[1735201353935,0.0898772,96475.0,96473.0,0.165849]
[1735201354141,0.0898772,96480.0,96479.0,0.165839]
[1735201354386,0.19386352,96480.0,96479.0,0.165839]
[1735201355275,0.10398632,96480.0,96479.0,0.165839]
[1735201355643,0.10598632,96480.0,96479.0,0.165839]
[1735201356582,0.09963598,96477.0,96476.0,0.165842]
[1735201356791,0.17983598,96473.0,96472.0,0.00060403]
[1735201356972,0.31406466,96473.0,96472.0,0.00060403]
[1735201357184,0.31276878,96473.0,96472.0,0.00060403]
[1735201358273,0.5827947,96473.0,96472.0,0.00060403]
[1735201359439,0.31276878,96473.0,96472.0,0.00060403]
[1735201359863,0.31294018,96473.0,96472.0,0.00060403]
[1735201360043,0.31394018,96473.0,96472.0,0.00060403]
[1735201360338,0.36144018,96473.0,96472.0,0.00060403]
[1735201360531,0.09963598,96450.0,96449.0,0.165889]
[1735201360758,0.2036223,96450.0,96449.0,0.165889]
[1735201361218,0.09963598,96444.0,96443.0,0.165899]
[1735201361402,0.09963598,96443.0,96441.0,0.165903]
[1735201361635,0.20491841,96442.0,96441.0,0.165903]
[1735201361849,0.09963598,96436.0,96435.0,0.1659996]
[1735201362065,0.2036223,96436.0,96435.0,0.1659996]
[1735201362512,0.20414246,96436.0,96435.0,0.1659996]
[1735201362729,0.20414246,96436.0,96435.0,8.56e-05]
[1735201364029,0.20414246,96436.0,96435.0,0.0020856]
[1735201365345,0.20414246,96436.0,96435.0,8.56e-05]
[1735201365593,0.20514246,96436.0,96435.0,8.56e-05]
[1735201366502,0.20914246,96436.0,96435.0,8.56e-05]
[1735201366724,0.20814246,96436.0,96435.0,8.56e-05]
[1735201366927,0.20814246,96436.0,96426.0,0.1647004]
[1735201367177,0.10528267,96435.0,96426.0,0.3306304]
[1735201368483,0.10528267,96435.0,96431.0,0.16592]
[1735201369340,0.10928267,96435.0,96431.0,0.16592]
[1735201369553,0.10528267,96435.0,96431.0,0.16592]
[1735201369970,0.10928267,96435.0,96431.0,0.16592]
[1735201370397,0.11028267,96435.0,96431.0,0.16592]
[1735201370609,0.11028267,96435.0,96426.0,0.1647004]
[1735201370845,0.10928267,96435.0,96426.0,0.1647004]
[1735201371267,0.09963598,96425.0,96424.0,0.165933]
[1735201371495,0.09963598,96418.0,96417.0,0.165944]
[1735201371708,0.09963598,96418.0,96413.0,0.165952]
[1735201371709,0.09963598,96414.0,96413.0,0.165952]
[1735201371933,0.2036223,96414.0,96413.0,0.165952]
[1735201372804,0.09963598,96411.0,96410.0,0.1660416]
[1735201372997,0.2036223,96411.0,96410.0,0.1660416]
[1735201374384,0.2036223,96411.0,96410.0,0.0020856]
[1735201374596,0.20491897,96411.0,96410.0,0.0020856]
[1735201374808,0.20491897,96411.0,96410.0,8.56e-05]
[1735201375199,0.20691897,96411.0,96410.0,8.56e-05]
[1735201375406,0.2056223,96411.0,96410.0,8.56e-05]
[1735201375612,0.20791896,96411.0,96410.0,0.0030856]
[1735201375821,0.2066223,96411.0,96410.0,0.0030856]
[1735201376177,0.2056223,96411.0,96410.0,8.56e-05]
[1735201376569,0.2096223,96411.0,96410.0,8.56e-05]
[1735201376767,0.2076223,96411.0,96410.0,8.56e-05]
[1735201377360,0.2096223,96411.0,96410.0,8.56e-05]
[1735201377747,0.10798632,96411.0,96410.0,8.56e-05]
[1735201377944,0.006,96411.0,96410.0,8.56e-05]
[1735201378335,0.10398632,96411.0,96410.0,8.56e-05]
[1735201378864,0.10998632,96411.0,96410.0,8.56e-05]
[1735201379099,0.2056223,96411.0,96410.0,8.56e-05]
[1735201379525,0.2066223,96411.0,96410.0,8.56e-05]
[1735201379742,0.2056223,96411.0,96410.0,8.56e-05]
[1735201379952,0.2036223,96411.0,96410.0,8.56e-05]
[1735201380158,0.2056223,96411.0,96410.0,8.56e-05]
[1735201380623,0.2036223,96411.0,96410.0,8.56e-05]
[1735201381266,0.2076223,96411.0,96410.0,8.56e-05]
[1735201381486,0.2036223,96411.0,96410.0,8.56e-05]
[1735201381936,0.2046223,96411.0,96410.0,8.56e-05]
[1735201382154,0.2036223,96411.0,96410.0,8.56e-05]
[1735201382377,0.2076223,96411.0,96410.0,8.56e-05]
[1735201382794,0.2076223,96411.0,96408.0,0.165959]
[1735201382795,0.0004954,96410.0,96408.0,0.165959]
[1735201383031,0.10398632,96409.0,96408.0,0.165959]
[1735201383243,0.10528296,96409.0,96408.0,0.165959]
[1735201384748,0.10398632,96409.0,96408.0,0.166959]
[1735201385172,0.10398632,96409.0,96408.0,0.167959]
[1735201385390,0.10398632,96409.0,96408.0,0.165959]
[1735201385835,0.10698632,96409.0,96408.0,0.165959]
[1735201386087,0.2036223,96409.0,96408.0,0.165959]
[1735201386736,0.2046223,96409.0,96408.0,0.165959]
[1735201386976,0.09963598,96404.0,96403.0,0.165968]
[1735201387200,0.2036223,96404.0,96403.0,0.165968]
[1735201388209,0.20414213,96404.0,96403.0,0.165968]
[1735201388384,0.00051983,96404.0,96403.0,0.165968]
[1735201388590,0.0498,96441.0,96422.0,0.165937]
[1735201388800,0.09980738,96436.0,96422.0,0.165937]
[1735201389233,0.13463751,96423.0,96422.0,0.165937]
[1735201389909,0.23862383,96423.0,96422.0,0.165937]
[1735201390337,0.2036223,96423.0,96422.0,0.165937]
[1735201390541,0.20491865,96423.0,96422.0,0.166937]
[1735201390762,0.20491865,96423.0,96422.0,0.001]
[1735201390991,0.23392859,96423.0,96416.0,0.165946]
[1735201391191,0.13429275,96422.0,96416.0,0.165946]
[1735201391402,0.09963598,96417.0,96416.0,0.165946]
[1735201391631,0.09963598,96406.0,96405.0,0.165966]
[1735201391840,0.2036223,96406.0,96405.0,0.165966]
[1735201392491,0.23267784,96406.0,96405.0,0.165966]
[1735201392905,0.23267784,96406.0,96405.0,0.331932]
[1735201393112,0.23267784,96406.0,96405.0,0.33864309]
[1735201393337,0.2036223,96406.0,96405.0,0.34064309]
[1735201393561,0.13305424,96406.0,96405.0,0.34064309]
[1735201393798,0.08973332,96419.0,96414.0,0.165951]
[1735201393799,0.09963598,96415.0,96414.0,0.165951]
[1735201393996,0.13305582,96415.0,96414.0,0.165951]
[1735201394224,0.08973332,96419.0,96414.0,0.165951]
[1735201394427,0.02907224,96418.0,96415.0,0.165947]
[1735201394811,0.02907224,96418.0,96417.0,0.165945]
[1735201395010,0.23269454,96418.0,96417.0,0.165945]
[1735201395263,0.2036223,96418.0,96417.0,0.165945]
[1735201395483,0.23270388,96418.0,96417.0,0.165945]
[1735201396737,0.23670388,96418.0,96417.0,0.165945]
[1735201396944,0.23670388,96418.0,96417.0,0.16847102]
[1735201397168,0.23270388,96418.0,96417.0,0.16847102]
[1735201397379,0.23370388,96418.0,96417.0,0.16847102]
[1735201398007,0.23470388,96418.0,96417.0,0.16847102]
[1735201398216,0.23470388,96418.0,96417.0,0.00252602]
[1735201398417,0.31690388,96418.0,96405.0,8.57e-05]
[1735201398623,0.10398632,96412.0,96410.0,0.165956]
[1735201398830,0.02908158,96411.0,96410.0,0.165956]
[1735201399035,0.1330679,96411.0,96406.0,0.165964]
[1735201399233,0.09963598,96407.0,96406.0,0.165964]
[1735201399440,0.23270388,96407.0,96406.0,0.165964]
[1735201400266,0.28060388,96407.0,96405.0,8.57e-05]
[1735201400469,0.14753598,96407.0,96406.0,0.001]
[1735201400644,0.28063394,96407.0,96406.0,0.001]
[1735201400859,0.28063394,96407.0,96406.0,0.002]
[1735201401082,0.28063394,96407.0,96406.0,0.165964]
[1735201401284,0.28663394,96407.0,96406.0,0.165964]
[1735201401719,0.28063394,96407.0,96406.0,0.165964]
[1735201401925,0.28663394,96407.0,96406.0,0.166964]
[1735201402768,0.28963394,96407.0,96406.0,0.166964]
[1735201403183,0.28063394,96407.0,96406.0,0.165964]
[1735201403375,0.28063394,96407.0,96406.0,0.166964]
[1735201403562,0.28963394,96407.0,96406.0,0.166964]
[1735201403807,0.28363394,96407.0,96406.0,0.165964]
[1735201404025,0.28663394,96407.0,96406.0,0.166964]
[1735201404414,0.28963394,96407.0,96406.0,0.166964]
[1735201407673,0.28963394,96407.0,96406.0,0.1670497]
[1735201408366,6.4e-07,96407.0,96406.0,0.1670497]
[1735201409486,0.22568844,96409.0,96406.0,0.1660497]
[1735201409686,0.22568844,96409.0,96406.0,0.3350137]
[1735201409908,0.22568844,96409.0,96406.0,0.3370137]
[1735201410114,0.22568844,96409.0,96406.0,0.3843364]
[1735201410286,0.22568844,96409.0,96406.0,0.3823364]
[1735201410424,0.22568844,96409.0,96406.0,0.3833364]
[1735201410673,0.18056259,96407.0,96406.0,0.3833364]
[1735201410882,0.18056259,96407.0,96406.0,0.3330137]
[1735201411886,0.18056259,96407.0,96406.0,0.3320137]
[1735201412088,0.18056259,96407.0,96406.0,0.3330137]
[1735201412523,0.18056259,96408.0,96406.0,0.3320137]
[1735201412725,0.18056259,96408.0,96407.0,0.1]
[1735201412726,0.11832759,96408.0,96407.0,0.1]
[1735201412942,0.07683759,96408.0,96407.0,0.41543894]
[1735201413140,0.07683759,96408.0,96407.0,0.49313894]
[1735201413393,0.11569764,96410.0,96409.0,0.25036402]
[1735201413565,0.0903048,96414.0,96413.0,0.00036402]
[1735201413789,0.0903048,96414.0,96413.0,0.35435034]
[1735201413988,0.0903048,96414.0,96413.0,0.44829701]
[1735201414470,0.122047,96417.0,96413.0,0.44793299]
[1735201414680,0.122047,96417.0,96416.0,0.1]
[1735201414907,0.0001714,96419.0,96416.0,0.315947]
[1735201415115,0.0001714,96419.0,96418.0,0.315944]
[1735201415919,0.0001714,96419.0,96418.0,0.165944]
[1735201416327,0.0001714,96419.0,96418.0,0.170944]
[1735201416531,0.0001714,96419.0,96418.0,0.165944]
[1735201417029,0.0001714,96419.0,96418.0,0.173944]
[1735201417204,0.0001714,96419.0,96418.0,0.168944]
[1735201417617,0.0001714,96419.0,96418.0,0.173944]
[1735201418027,0.0001714,96419.0,96418.0,0.170944]
[1735201418388,0.0001714,96419.0,96418.0,0.173944]
[1735201418830,0.0001714,96419.0,96418.0,0.168944]
[1735201419032,0.0001714,96419.0,96418.0,0.165944]
[1735201419240,0.0001714,96419.0,96418.0,0.169944]
[1735201419496,0.0001714,96419.0,96418.0,0.166944]
[1735201420167,0.0001714,96419.0,96418.0,0.167944]
[1735201422468,0.10415772,96419.0,96418.0,0.167944]
[1735201422828,0.2037937,96419.0,96418.0,0.167944]
[1735201423453,0.2037937,96419.0,96418.0,0.165944]
[1735201423869,0.2047937,96419.0,96418.0,0.165944]
[1735201424743,0.02999483,96419.0,96418.0,0.165944]
[1735201424896,0.16415799,96419.0,96418.0,0.165944]
[1735201425320,0.13833456,96419.0,96418.0,0.165944]
[1735201425509,0.13933456,96419.0,96418.0,0.165944]
[1735201425934,0.3717791,96419.0,96418.0,0.165944]
[1735201426104,0.3677791,96419.0,96418.0,0.165944]
[1735201426307,0.3677791,96419.0,96418.0,0.166944]
[1735201426514,0.3677791,96419.0,96418.0,0.167944]
[1735201426754,0.3677791,96419.0,96414.0,0.165951]
[1735201426964,0.17633598,96415.0,96414.0,0.165951]
[1735201427162,0.35774454,96415.0,96414.0,0.165951]
[1735201427374,0.09963598,96412.0,96411.0,0.165954]
[1735201427586,0.23244454,96412.0,96411.0,0.165954]
[1735201428763,0.23544454,96412.0,96411.0,0.165954]
[1735201428977,0.23344454,96412.0,96411.0,0.165954]
[1735201429425,0.24044454,96412.0,96411.0,0.166954]
[1735201429609,0.24044454,96412.0,96411.0,0.165954]
[1735201429856,0.24344454,96412.0,96411.0,0.165954]
[1735201430843,0.09963598,96407.0,96405.0,8.57e-05]
[1735201431051,0.23244454,96407.0,96405.0,8.57e-05]
[1735201432587,0.23344454,96407.0,96405.0,8.57e-05]
[1735201432770,0.23244454,96407.0,96405.0,8.57e-05]
[1735201432996,0.23344454,96407.0,96405.0,8.57e-05]
[1735201434020,0.50354611,96407.0,96405.0,8.57e-05]
[1735201434266,0.50254611,96407.0,96405.0,8.57e-05]
[1735201434496,0.50354611,96407.0,96405.0,8.57e-05]
[1735201434929,0.50254611,96407.0,96405.0,8.57e-05]
[1735201435670,0.50354611,96407.0,96405.0,8.57e-05]
[1735201435895,0.09963598,96406.0,96405.0,8.57e-05]
[1735201436109,0.38374139,96406.0,96405.0,8.57e-05]
[1735201436305,0.38244454,96406.0,96405.0,8.57e-05]
[1735201436513,0.38244454,96406.0,96403.0,8.659e-05]
[1735201436718,0.10398632,96404.0,96403.0,8.659e-05]
[1735201436958,0.13410538,96404.0,96403.0,8.659e-05]
[1735201437378,0.23374136,96404.0,96403.0,8.659e-05]
[1735201437592,0.23244454,96404.0,96403.0,8.659e-05]
[1735201438042,0.23244454,96404.0,96363.0,0.166038]
[1735201438043,0.09963598,96387.0,96371.0,0.166024]
[1735201438247,0.23244454,96387.0,96371.0,0.166024]